fUSD/lending_fUSD_20251210
["ID","MTS","AMOUNT","RATE_DAILY","PERIOD"]
[398118723,1765384264572,-500.0,0.00038356,30]
[398118724,1765384264581,-500.0,0.00038356,30]
[398118725,1765384264591,-500.0,0.00038356,30]
[398118726,1765384264600,-500.0,0.00038356,30]
[398118727,1765384264609,-500.0,0.00038356,30]
[398118728,1765384264619,-500.0,0.00038356,30]
[398118729,1765384264628,-500.0,0.00038356,30]
[398118730,1765384264637,-500.0,0.00038356,30]
[398118731,1765384264647,-558.44,0.00038356,30]
[398118732,1765384264657,-500.0,0.00038356,30]
[398118733,1765384264666,-558.44,0.00038356,30]
[398118734,1765384264675,-558.44,0.00038356,30]
[398118735,1765384264684,-612.58293708,0.00038356,30]
[398118736,1765384264693,-558.44,0.00038356,30]
[398118737,1765384264702,-558.44,0.00038356,30]
[398118738,1765384264712,-558.44,0.00038356,30]
[398118739,1765384264722,-500.0,0.00038356,30]
[398118740,1765384264731,-558.44,0.00038356,30]
[398118741,1765384264740,-500.0,0.00038356,30]
[398118742,1765384264750,-558.44,0.00038356,30]
[398118743,1765384264760,-500.0,0.00038356,30]
[398118744,1765384264769,-558.44,0.00038356,30]
[398118745,1765384264778,-500.0,0.00038356,30]
[398118746,1765384264787,-558.44,0.00038356,30]
[398118747,1765384264797,-500.0,0.00038356,30]
[398118748,1765384264806,-500.0,0.00038356,30]
[398118749,1765384264816,-500.0,0.00038356,30]
[398118750,1765384264825,-500.0,0.00038356,30]
[398118751,1765384264835,-500.0,0.00038356,30]
[398118752,1765384264844,-500.0,0.00038356,30]
[398118753,1765384264853,-500.0,0.00038356,30]
[398118754,1765384264862,-500.0,0.00038356,30]
[398118755,1765384264872,-500.0,0.00038356,30]
[398118756,1765384264881,-500.0,0.00038356,30]
[398118757,1765384264890,-500.0,0.00038356,30]
[398118758,1765384264900,-500.0,0.00038356,30]
[398118759,1765384264909,-500.0,0.00038356,30]
[398118760,1765384264919,-546.47,0.00038356,30]
[398118761,1765384264928,-500.0,0.00038356,30]
[398118762,1765384264938,-500.0,0.00038356,30]
[398118763,1765384264947,-500.0,0.00038356,30]
[398118764,1765384264956,-500.0,0.00038356,30]
[398118765,1765384264966,-500.0,0.00038356,30]
[398118766,1765384264975,-500.0,0.00038356,30]
[398118767,1765384264985,-500.0,0.00038356,30]
[398118768,1765384264994,-515.52,0.00038356,30]
[398118769,1765384265004,-500.0,0.00038356,30]
[398118770,1765384265013,-500.0,0.00038356,30]
[398118771,1765384265022,-500.0,0.00038356,30]
[398118772,1765384265032,-500.0,0.00038356,30]
[398118773,1765384265041,-500.0,0.00038356,30]
[398118774,1765384265050,-500.0,0.00038356,30]
[398118775,1765384265059,-500.0,0.00038356,30]
[398118776,1765384265068,-500.0,0.00038356,30]
[398118777,1765384265077,-500.0,0.00038356,30]
[398118778,1765384265086,-584.62020947,0.00038356,30]
[398118779,1765384265095,-461.03228056,0.00038356,30]
[398118780,1765384265105,-500.0,0.00038356,30]
[398118781,1765384265113,-500.0,0.00038356,30]
[398118782,1765384265123,-500.0,0.00038356,30]
[398118783,1765384265132,-500.0,0.00038356,30]
[398118784,1765384265141,-275.15,0.00038356,30]
[398118785,1765384265151,-500.0,0.00038356,30]
[398118786,1765384265160,-500.0,0.00038356,30]
[398118787,1765384265169,-500.0,0.00038356,30]
[398118788,1765384265179,-500.0,0.00038356,30]
[398118789,1765384265188,-500.0,0.00038356,30]
[398118790,1765384265197,-500.0,0.00038356,30]
[398118791,1765384265207,-500.0,0.00038356,30]
[398118792,1765384265216,-500.0,0.00038356,30]
[398118793,1765384265227,-500.0,0.00038356,30]
[398118794,1765384265236,-500.0,0.00038356,30]
[398118795,1765384265246,-500.0,0.00038356,30]
[398118796,1765384265255,-500.0,0.00038356,30]
[398118797,1765384265265,-500.0,0.00038356,30]
[398118798,1765384265274,-500.0,0.00038356,30]
[398118799,1765384265283,-500.0,0.00038356,30]
[398118800,1765384265293,-500.0,0.00038356,30]
[398118801,1765384265302,-500.0,0.00038356,30]
[398118802,1765384265312,-500.0,0.00038356,30]
[398118803,1765384265321,-500.0,0.00038356,30]
[398118804,1765384265331,-500.0,0.00038356,30]
[398118805,1765384265345,-500.0,0.00038356,30]
[398118806,1765384265354,-500.0,0.00038356,30]
[398118807,1765384265363,-410.15535411,0.00038356,30]
[398118808,1765384265374,-500.0,0.00038356,30]
[398118809,1765384265385,-500.0,0.00038356,30]
[398118810,1765384265395,-500.0,0.00038356,30]
[398118811,1765384265404,-500.0,0.00038356,30]
[398118812,1765384265417,-500.0,0.00038356,30]
[398118813,1765384265426,-193.81205996,0.00038356,30]
[398118814,1765384265437,-554.40089316,0.00038356,30]
[398118815,1765384265447,-500.0,0.00038356,30]
[398118816,1765384265457,-500.0,0.00038356,30]
[398118817,1765384265466,-500.0,0.00038356,30]
[398118818,1765384265475,-500.0,0.00038356,30]
[398118819,1765384265484,-500.0,0.00038356,30]
[398118820,1765384265494,-500.0,0.00038356,30]
[398118821,1765384265504,-500.0,0.00038356,30]
[398118822,1765384265513,-500.0,0.00038356,30]
[398118823,1765384265522,-500.0,0.00038356,30]
[398118824,1765384265532,-500.0,0.00038356,30]
[398118825,1765384265543,-500.0,0.00038356,30]
[398118826,1765384265552,-500.0,0.00038356,30]
[398118827,1765384265561,-500.0,0.00038356,30]
[398118828,1765384265570,-500.0,0.00038356,30]
[398118829,1765384265581,-500.0,0.00038356,30]
[398118830,1765384265590,-254.02017999,0.00038356,30]
[398118831,1765384265600,-500.0,0.00038356,30]
[398118832,1765384265609,-500.0,0.00038356,30]
[398118833,1765384265618,-500.0,0.00038356,30]
[398118834,1765384265627,-500.0,0.00038356,30]
[398118835,1765384265637,-500.0,0.00038356,30]
[398118836,1765384265646,-500.0,0.00038356,30]
[398118837,1765384265656,-500.0,0.00038356,30]
[398118838,1765384265666,-500.0,0.00038356,30]
[398118839,1765384265675,-500.0,0.00038356,30]
[398118840,1765384265684,-298.53008667,0.00038356,30]
[398118841,1765384265694,-500.0,0.00038356,30]
[398118842,1765384265704,-500.0,0.00038356,30]
[398118843,1765384265713,-500.0,0.00038356,30]
[398118844,1765384265723,-309.17766579,0.00038356,30]
[398118845,1765384265732,-500.0,0.00038356,30]
[398118846,1765384265741,-514.57,0.00038356,30]
[398118847,1765384265750,-500.0,0.00038356,30]
[398118848,1765384265760,-500.0,0.00038356,30]
[398118849,1765384265768,-500.0,0.00038356,30]
[398118850,1765384265778,-500.0,0.00038356,30]
[398118851,1765384265787,-336.04486016,0.00038356,30]
[398118852,1765384265796,-500.0,0.00038356,30]
[398118853,1765384265805,-500.0,0.00038356,30]
[398118854,1765384265815,-500.0,0.00038356,30]
[398118855,1765384265824,-500.0,0.00038356,30]
[398118856,1765384265834,-412.86472982,0.00038356,30]
[398118857,1765384265843,-500.0,0.00038356,30]
[398118858,1765384265852,-500.0,0.00038356,30]
[398118859,1765384265862,-608.57166909,0.00038356,30]
[398118860,1765384265871,-500.0,0.00038356,30]
[398118861,1765384265880,-500.0,0.00038356,30]
[398118862,1765384265889,-500.0,0.00038356,30]
[398118863,1765384265898,-500.0,0.00038356,30]
[398118864,1765384265909,-500.0,0.00038356,30]
[398118865,1765384265918,-500.0,0.00038356,30]
[398118866,1765384265927,-500.0,0.00038356,30]
[398118867,1765384265936,-500.0,0.00038356,30]
[398118868,1765384265946,-500.0,0.00038356,30]
[398118869,1765384265955,-500.0,0.00038356,30]
[398118870,1765384265964,-500.0,0.00038356,30]
[398118871,1765384266059,-500.0,0.00038356,30]
[398118872,1765384266069,-500.0,0.00038356,30]
[398118873,1765384266078,-500.0,0.00038356,30]
[398118874,1765384266087,-500.0,0.00038356,30]
[398118875,1765384266096,-500.0,0.00038356,30]
[398118876,1765384266105,-500.0,0.00038356,30]
[398118877,1765384266114,-500.0,0.00038356,30]
[398118878,1765384266123,-500.0,0.00038356,30]
[398118879,1765384266132,-500.0,0.00038356,30]
[398118880,1765384266141,-329.82099026,0.00038356,30]
[398118881,1765384266152,-500.0,0.00038356,30]
[398118882,1765384266162,-500.0,0.00038356,30]
[398118883,1765384266172,-500.0,0.00038356,30]
[398118884,1765384266181,-500.0,0.00038356,30]
[398118885,1765384266191,-500.0,0.00038356,30]
[398118886,1765384266202,-377.80917797,0.00038356,30]
[398118887,1765384266212,-500.0,0.00038356,30]
[398118888,1765384266222,-500.0,0.00038356,30]
[398118889,1765384266232,-500.0,0.00038356,30]
[398118890,1765384266242,-500.0,0.00038356,30]
[398118891,1765384266252,-500.0,0.00038356,30]
[398118892,1765384266262,-500.0,0.00038356,30]
[398118893,1765384266272,-500.0,0.00038356,30]
[398118894,1765384266283,-500.0,0.00038356,30]
[398118895,1765384266293,-500.0,0.00038356,30]
[398118896,1765384266303,-500.0,0.00038356,30]
[398118897,1765384266313,-500.0,0.00038356,30]
[398118898,1765384266322,-500.0,0.00038356,30]
[398118899,1765384266335,-500.0,0.00038356,30]
[398118900,1765384266345,-500.0,0.00038356,30]
[398118901,1765384266355,-500.0,0.00038356,30]
[398118902,1765384266364,-500.0,0.00038356,30]
[398118903,1765384266374,-500.0,0.00038356,30]
[398118904,1765384266383,-500.0,0.00038356,30]
[398118905,1765384266392,-500.0,0.00038356,30]
[398118906,1765384266403,-500.0,0.00038356,30]
[398118907,1765384266414,-500.0,0.00038356,30]
[398118908,1765384266424,-500.0,0.00038356,30]
[398118909,1765384266434,-500.0,0.00038356,30]
[398118910,1765384266443,-500.0,0.00038356,30]
[398118911,1765384266453,-500.0,0.00038356,14]
[398118912,1765384266462,-500.0,0.00038356,30]
[398118913,1765384266473,-500.0,0.00038356,14]
[398118914,1765384266482,-500.0,0.00038356,30]
[398118915,1765384266491,-500.0,0.00038356,14]
[398118916,1765384266501,-500.0,0.00038356,30]
[398118917,1765384266510,-500.0,0.00038356,14]
[398118918,1765384266520,-500.0,0.00038356,30]
[398118919,1765384266530,-500.0,0.00038356,30]
[398118920,1765384266539,-500.0,0.00038356,14]
[398118921,1765384266549,-500.0,0.00038356,30]
[398118922,1765384266560,-500.0,0.00038356,14]
[398118923,1765384266571,-500.0,0.00038356,30]
[398118924,1765384266582,-500.0,0.00038356,30]
[398118925,1765384266591,-500.0,0.00038356,14]
[398118926,1765384266601,-500.0,0.00038356,30]
[398118927,1765384266612,-500.0,0.00038356,14]
[398118928,1765384266623,-500.0,0.00038356,30]
[398118929,1765384266632,-500.0,0.00038356,14]
[398118930,1765384266643,-500.0,0.00038356,30]
[398118931,1765384266654,-500.0,0.00038356,14]
[398118932,1765384266663,-500.0,0.00038356,30]
[398118933,1765384266672,-500.0,0.00038356,30]
[398118934,1765384266681,-500.0,0.00038356,30]
[398118935,1765384266690,-500.0,0.00038356,30]
[398118936,1765384266700,-500.0,0.00038356,30]
[398118937,1765384266709,-500.0,0.00038356,30]
[398118938,1765384266718,-500.0,0.00038356,30]
[398118939,1765384266727,-500.0,0.00038356,30]
[398118940,1765384266736,-500.0,0.00038356,30]
[398118941,1765384266746,-500.0,0.00038356,30]
[398118942,1765384266755,-500.0,0.00038356,30]
[398118943,1765384266764,-500.0,0.00038356,30]
[398118944,1765384266775,-500.0,0.00038356,30]
[398118945,1765384266785,-464.31574411,0.00038356,30]
[398118946,1765384266794,-585.27755683,0.00038356,30]
[398118947,1765384266805,-500.0,0.00038356,30]
[398118948,1765384266816,-500.0,0.00038356,30]
[398118949,1765384266834,-500.0,0.00038356,30]
[398118950,1765384266850,-500.0,0.00038356,30]
[398118951,1765384266867,-500.0,0.00038356,30]
[398118952,1765384266884,-500.0,0.00038356,30]
[398118953,1765384266901,-500.0,0.00038356,30]
[398118954,1765384266915,-500.0,0.00038356,30]
[398118955,1765384266932,-500.0,0.00038356,30]
[398118956,1765384266950,-500.0,0.00038356,30]
[398118957,1765384266967,-601.1035063,0.00038356,30]
[398118958,1765384266983,-500.0,0.00038356,30]
[398118959,1765384267000,-500.0,0.00038356,30]
[398118960,1765384267017,-500.0,0.00038356,30]
[398118961,1765384267034,-500.0,0.00038356,30]
[398118962,1765384267049,-500.0,0.00038356,30]
[398118963,1765384267063,-500.0,0.00038356,30]
[398118964,1765384267076,-265.46468574,0.00038356,30]
[398118965,1765384267093,-500.0,0.00038356,30]
[398118966,1765384267104,-500.0,0.00038356,30]
[398118967,1765384267119,-500.0,0.00038356,30]
[398118968,1765384267133,-500.0,0.00038356,30]
[398118969,1765384267147,-500.0,0.00038356,30]
[398118970,1765384267161,-500.0,0.00038356,30]
[398118971,1765384267176,-500.0,0.00038356,30]
[398118972,1765384267190,-500.0,0.00038356,30]
[398118973,1765384267203,-500.0,0.00038356,30]
[398118974,1765384267218,-500.0,0.00038356,30]
[398118975,1765384267232,-4068.0171909,0.0003838,2]
[398118976,1765384267246,-718.72,0.00038388,120]
[398118977,1765384267260,-1275.37,0.000385,30]
[398118978,1765384267274,-199.0,0.0003863,12]
[398118979,1765384267287,-8902.48112146,0.00038795,2]
[398118980,1765384267300,-33206.76000003,0.00039,4]
[398118981,1765384267314,-566.61,0.00039,14]
[398118982,1765384267329,-500.0,0.0003904,30]
[398118983,1765384267345,-500.0,0.0003904,30]
[398118984,1765384267358,-500.0,0.0003904,30]
[398118985,1765384267371,-558.44,0.0003904,30]
[398118986,1765384267385,-6773.0,0.00039041,120]
[398118987,1765384267398,-6773.0,0.00039041,120]
[398118988,1765384267412,-6773.0,0.00039041,120]
[398118989,1765384267425,-6773.0,0.00039041,120]
[398118990,1765384267439,-6773.0,0.00039041,120]
[398118991,1765384267453,-6773.0,0.00039041,120]
[398118992,1765384267467,-6773.0,0.00039041,120]
[398118993,1765384267481,-6773.0,0.00039041,120]
[398118994,1765384267495,-6773.0,0.00039041,120]
[398118995,1765384267509,-6773.0,0.00039041,120]
[398118996,1765384267522,-6773.0,0.00039041,120]
[398118997,1765384267536,-6773.0,0.00039041,120]
[398118998,1765384267549,-6773.0,0.00039041,120]
[398118999,1765384267563,-6773.0,0.00039041,120]
[398119000,1765384267576,-6773.0,0.00039041,120]
[398119001,1765384267589,-6773.0,0.00039041,120]
[398119002,1765384267603,-6773.0,0.00039041,120]
[398119003,1765384267617,-6773.0,0.00039041,120]
[398119004,1765384267631,-6773.0,0.00039041,120]
[398119005,1765384267646,-6773.0,0.00039041,120]
[398119006,1765384267661,-303.7560341,0.00039099,30]
[398119007,1765384267675,-500.0,0.00039099,30]
[398119008,1765384267691,-500.0,0.00039099,30]
[398119009,1765384267704,-599.84,0.00039099,30]
[398119010,1765384267717,-500.0,0.00039099,30]
[398119011,1765384267730,-500.0,0.00039099,30]
[398119012,1765384267744,-500.0,0.00039099,30]
[398119013,1765384267758,-500.0,0.00039099,30]
[398119014,1765384267772,-428.43391147,0.00039099,30]
[398119015,1765384267786,-500.0,0.00039099,30]
[398119016,1765384267802,-500.0,0.00039099,30]
[398119017,1765384267812,-500.0,0.00039099,30]
[398119018,1765384267822,-396.67,0.00039099,30]
[398119019,1765384267831,-159.43,0.000391,30]
[398119020,1765384267840,-199.0,0.00039178,13]
[398119021,1765384267849,-5159.89,0.000392,14]
[398119022,1765384268007,-451.46226628,0.00039254,2]
[398119023,1765384268028,-5000.0,0.00039425,120]
[398119024,1765384268045,-187.6702066,0.00039653,2]
[398119025,1765384268055,-340.09,0.00039654,2]
[398119026,1765384268064,-199.0,0.00039726,14]
[398119027,1765384268074,-617.42451812,0.00039862,2]
[398119028,1765384268083,-1969.12800029,0.00039864,2]
[398119029,1765384268093,-500.0,0.00039936,14]
[398119030,1765384268103,-500.0,0.00039999,30]
[398119031,1765384268113,-50000.0,0.0004,40]
[398119032,1765384268123,-1000.0,0.0004,120]
[398119033,1765384268132,-2500.0,0.0004,120]
[398119034,1765384268141,-2500.0,0.0004,120]
[398119035,1765384268150,-199.0,0.00040273,15]
[398119036,1765384268160,-688.36,0.00040498,30]
[398119037,1765384268170,-2500.0,0.000405,120]
[398119038,1765384268179,-2500.0,0.000405,120]
[398119039,1765384268188,-2500.0,0.000405,120]
[398119040,1765384268198,-325.04360952,0.00040568,12]
[398119041,1765384268209,-325.04360946,0.00040568,12]
[398119042,1765384268218,-325.04360946,0.00040568,12]
[398119043,1765384268227,-325.04360946,0.00040568,12]
[398119044,1765384268237,-325.04360946,0.00040568,12]
[398119045,1765384268246,-325.04360946,0.00040568,12]
[398119046,1765384268256,-325.04360946,0.00040568,12]
[398119047,1765384268265,-325.04360946,0.00040568,12]
[398119048,1765384268275,-325.04360946,0.00040568,12]
[398119049,1765384268285,-325.04360946,0.00040568,12]
[398119050,1765384268294,-325.04360946,0.00040568,12]
[398119051,1765384268305,-325.04360946,0.00040568,12]
[398119052,1765384268315,-325.04360946,0.00040568,12]
[398119053,1765384268325,-325.04360946,0.00040568,12]
[398119054,1765384268337,-8345.126,0.00040788,2]
[398119055,1765384268347,-199.0,0.00040821,16]
[398119056,1765384268357,-217.0,0.00040822,14]
[398119057,1765384268367,-408.69862489,0.00040839,103]
[398119058,1765384268378,-164.87838723,0.00040848,4]
[398119059,1765384268387,-156.69,0.00040869,2]
[398119060,1765384268397,-11254.9,0.00040878,6]
[398119061,1765384268407,-240.8,0.00040887,30]
[398119062,1765384268420,-500.0,0.00040887,30]
[398119063,1765384268430,-500.0,0.00040887,30]
[398119064,1765384268440,-590.35,0.00040887,30]
[398119065,1765384268449,-548.31038126,0.00040887,30]
[398119066,1765384268459,-500.0,0.00040887,30]
[398119067,1765384268470,-500.0,0.00040887,30]
[398119068,1765384268480,-500.0,0.00040887,30]
[398119069,1765384268491,-500.0,0.00040887,30]
[398119070,1765384268500,-4068.0171909,0.000409,15]
[398119071,1765384268511,-341.73567414,0.000409,2]
[398119072,1765384268521,-150.0,0.0004099,120]
[398119073,1765384268530,-160.0,0.0004099,120]
[398119074,1765384268540,-562.45259171,0.00040999,30]
[398119075,1765384268549,-500.0,0.00040999,30]
[398119076,1765384268559,-500.0,0.00040999,30]
[398119077,1765384268568,-604.6,0.00040999,30]
[398119078,1765384268578,-500.0,0.00040999,30]
[398119079,1765384268587,-500.0,0.00040999,30]
[398119080,1765384268597,-500.0,0.00040999,30]
[398119081,1765384268606,-500.0,0.00040999,30]
[398119082,1765384268615,-387.44,0.00040999,30]
[398119083,1765384268625,-500.0,0.00040999,30]
[398119084,1765384268635,-500.0,0.00040999,30]
[398119085,1765384268645,-202.8,0.00040999,30]
[398119086,1765384268654,-500.0,0.00040999,30]
[398119087,1765384268664,-500.0,0.00040999,30]
[398119088,1765384268673,-151.0,0.00040999,30]
[398119089,1765384268684,-500.0,0.00040999,30]
[398119090,1765384268694,-500.0,0.00040999,30]
[398119091,1765384268703,-500.0,0.00040999,30]
[398119092,1765384268713,-500.0,0.00040999,30]
[398119093,1765384268723,-500.0,0.00040999,30]
[398119094,1765384268732,-500.0,0.00040999,30]
[398119095,1765384268741,-500.0,0.00040999,30]
[398119096,1765384268752,-527.89991784,0.00040999,30]
[398119097,1765384268761,-500.0,0.00040999,30]
[398119098,1765384268771,-500.0,0.00040999,30]
[398119099,1765384268781,-500.0,0.00040999,30]
[398119100,1765384268791,-500.0,0.00040999,30]
[398119101,1765384268801,-500.0,0.00040999,30]
[398119102,1765384268811,-500.0,0.00040999,30]
[398119103,1765384268821,-500.0,0.00040999,30]
[398119104,1765384268830,-407.9,0.00040999,30]
[398119105,1765384268841,-500.0,0.00040999,30]
[398119106,1765384268854,-500.0,0.00040999,30]
[398119107,1765384268867,-500.0,0.00040999,30]
[398119108,1765384268877,-500.0,0.00040999,30]
[398119109,1765384268888,-500.0,0.00040999,30]
[398119110,1765384268898,-558.44,0.00040999,30]
[398119111,1765384268908,-558.44,0.00040999,30]
[398119112,1765384268918,-558.44,0.00040999,30]
[398119113,1765384268928,-558.44,0.00040999,30]
[398119114,1765384268940,-558.44,0.00040999,30]
[398119115,1765384268949,-500.0,0.00040999,30]
[398119116,1765384268959,-500.0,0.00040999,30]
[398119117,1765384268969,-500.0,0.00040999,30]
[398119118,1765384268979,-500.0,0.00040999,30]
[398119119,1765384268988,-459.2,0.00040999,30]
[398119120,1765384268998,-50000.0,0.00041,41]
[398119121,1765384269008,-1094528.92003042,0.00041,2]
[398119122,1765384269017,-1055.04173249,0.00041,17]
[398119123,1765384269026,-500.0,0.00041,60]
[398119124,1765384269036,-284.4,0.00041,23]
[398119125,1765384269045,-420.0,0.00041,10]
[398119126,1765384269054,-500.0,0.00041,5]
[398119127,1765384269064,-507.13,0.00041,5]
[398119128,1765384269073,-500.0,0.00041,7]
[398119129,1765384269083,-500.0,0.00041,10]
[398119130,1765384269093,-250.0,0.00041,7]
[398119131,1765384269103,-566.61,0.00041,14]
[398119132,1765384269112,-1145.26106594,0.00041,120]
[398119133,1765384269123,-2500.0,0.00041,120]
[398119134,1765384269132,-159.43,0.00041,30]
[398119135,1765384269141,-2500.0,0.00041,120]
[398119136,1765384269151,-2500.0,0.00041,120]
[398119137,1765384269161,-1000.0,0.00041,120]
[398119138,1765384269170,-1000.0,0.00041,120]
[398119139,1765384269179,-1000.0,0.00041,120]
[398119140,1765384269188,-1000.0,0.00041,120]
[398119141,1765384269198,-4350.7040592,0.00041,2]
[398119142,1765384269208,-4350.7040592,0.00041,4]
[398119143,1765384269219,-341.7356741,0.00041014,2]
[398119144,1765384269228,-1208.4,0.00041041,7]
[398119145,1765384269237,-217.0,0.00041096,14]
[398119146,1765384269245,-156.19,0.00041096,2]
[398119147,1765384269254,-500.0,0.00041099,30]
[398119148,1765384269263,-500.0,0.00041099,30]
[398119149,1765384269273,-500.0,0.00041099,30]
[398119150,1765384269283,-558.44,0.00041099,30]
[398119151,1765384269293,-243574.9894068,0.000411,3]
[398119152,1765384269302,-500.0,0.000411,2]
[398119153,1765384269311,-1200.0,0.000411,2]
[398119154,1765384269321,-5159.89,0.000411,14]
[398119155,1765384269331,-341.7356741,0.00041129,2]
[398119156,1765384269345,-341.7356741,0.00041243,2]
[398119157,1765384269354,-200.0,0.00041311,120]
[398119158,1765384269362,-264.49,0.00041344,30]
[398119159,1765384269373,-500.0,0.00041344,30]
[398119160,1765384269383,-500.0,0.00041344,30]
[398119161,1765384269392,-500.0,0.00041344,30]
[398119162,1765384269402,-559.9052235,0.00041352,7]
[398119163,1765384269411,-500.0,0.00041353,30]
[398119164,1765384269423,-302.0,0.00041353,30]
[398119165,1765384269433,-558.44,0.00041353,30]
[398119166,1765384269443,-558.44,0.00041353,30]
[398119167,1765384269452,-558.44,0.00041353,30]
[398119168,1765384269462,-558.44,0.00041353,30]
[398119169,1765384269472,-558.44,0.00041353,30]
[398119170,1765384269482,-558.44,0.00041353,30]
[398119171,1765384269493,-558.58,0.00041353,30]
[398119172,1765384269502,-8902.48112146,0.00041354,15]
[398119173,1765384269511,-341.7356741,0.00041358,2]
[398119174,1765384269520,-253284.16006133,0.00041358,30]
[398119175,1765384269800,-1339.0389684,0.00041362,30]
[398119191,1765384744106,250.0,0.000202,30]
[398119192,1765384773001,-250.0,0.00017872,2]
[398119193,1765384773030,-307.08770607,0.00017873,2]
[398119194,1765384773058,-500.0,0.00017873,2]
[398119195,1765384773087,-500.0,0.00017873,2]
[398119196,1765384773116,-500.0,0.00017873,2]
[398119197,1765384773145,-500.0,0.00017873,2]
[398119198,1765384773173,-500.0,0.00017873,2]
[398119199,1765384773202,-550.0,0.00017998,2]
[398119200,1765384773230,-795.3,0.00017999,2]
[398119201,1765384773258,-399.93458786,0.00017999,2]
[398119202,1765384773405,-395.36541214,0.00017999,2]
[398119203,1765384773433,-500.0,0.00017999,2]
[398119204,1765384773462,-500.0,0.00017999,2]
[398119205,1765384773490,-510.25,0.00017999,2]
[398119206,1765384773521,-510.25,0.00017999,2]
[398119207,1765384773550,-500.0,0.00017999,2]
[398119208,1765384773578,-500.0,0.00017999,2]
[398119209,1765384773606,-500.0,0.00017999,2]
[398119210,1765384773634,-500.0,0.00017999,2]
[398119211,1765384773662,-500.0,0.00017999,2]
[398119212,1765384773908,-405.61541214,0.00017999,2]
[398119213,1765384773922,-94.38458786,0.00017999,2]
[398119214,1765384773931,-73.89458786,0.00017999,2]
[398119215,1765384775935,-226.10541214,0.00017999,2]
[398119216,1765384775968,-504.38215206,0.00017999,2]
[398119217,1765384776003,-500.0,0.00017999,2]
[398119218,1765384776035,-485.52312637,0.00017999,2]
[398119219,1765384776071,-502.41193472,0.00017999,2]
[398119220,1765384776105,-500.0,0.00017999,2]
[398119221,1765384776139,-500.0,0.00017999,2]
[398119222,1765384776171,-500.0,0.00017999,2]
[398119223,1765384776207,-500.0,0.00017999,2]
[398119224,1765384776238,-500.0,0.00017999,2]
[398119225,1765384776271,-63.16474942,0.00017999,2]
[398119226,1765384776474,-436.83525058,0.00017999,2]
[398119227,1765384779248,-500.0,0.00017999,2]
[398119228,1765384779278,-500.0,0.00017999,2]
[398119229,1765384779308,-500.0,0.00017999,2]
[398119230,1765384779338,-500.0,0.00017999,2]
[398119231,1765384779370,-500.0,0.00017999,2]
[398119232,1765384779401,-500.0,0.00017999,2]
[398119233,1765384779431,-497.64029733,0.00018421,2]
[398119234,1765384779462,-937.39288535,0.00018421,2]
[398119235,1765384779495,-129.94363464,0.00018421,2]
[398119236,1765384779645,-870.05636536,0.00018421,2]
[398119237,1765384782185,-1000.0,0.00018421,2]